fUSD/lending_fUSD_20260615
["ID","MTS","AMOUNT","RATE_DAILY","PERIOD"]
[425083083,1781473838000,-500.0,0.00013698,2]
[425083050,1781473838000,-500.0,0.00013698,2]
[425083061,1781473838000,-610.18,0.00013698,2]
[425083063,1781473838000,-610.18,0.00013698,2]
[425083049,1781473838000,-500.0,0.00013698,2]
[425083067,1781473838000,-610.18,0.00013698,2]
[425083054,1781473838000,-500.0,0.00013698,2]
[425083068,1781473838000,-610.18,0.00013698,2]
[425083051,1781473838000,-500.0,0.00013698,2]
[425083058,1781473838000,-500.0,0.00013698,2]
[425083056,1781473838000,-500.0,0.00013698,2]
[425083065,1781473838000,-610.18,0.00013698,2]
[425083074,1781473838000,-610.18,0.00013698,2]
[425083069,1781473838000,-610.18,0.00013698,2]
[425083073,1781473838000,-610.18,0.00013698,2]
[425083076,1781473838000,-500.0,0.00013698,2]
[425083080,1781473838000,-500.0,0.00013698,2]
[425083078,1781473838000,-500.0,0.00013698,2]
[425083075,1781473838000,-610.18,0.00013698,2]
[425083079,1781473838000,-500.0,0.00013698,2]
[425083077,1781473838000,-500.0,0.00013698,2]
[425083070,1781473838000,-610.18,0.00013698,2]
[425083081,1781473838000,-500.0,0.00013698,2]
[425083071,1781473838000,-610.18,0.00013698,2]
[425083142,1781473839000,-802.25695763,0.00014689,2]
[425083139,1781473839000,-525.3995,0.00014648,2]
[425083140,1781473839000,-161.12489956,0.0001465,2]
[425083136,1781473839000,-3395.51,0.00014504,2]
[425083132,1781473839000,-207.42342357,0.00014408,2]
[425083135,1781473839000,-802.25695763,0.00014478,2]
[425083137,1781473839000,-3943.19112755,0.00014572,2]
[425083138,1781473839000,-151.0,0.0001463,2]
[425083145,1781473839000,-11700.47680046,0.00014732,2]
[425083141,1781473839000,-207.42342357,0.00014654,2]
[425083148,1781473839000,-2000.0,0.000148,2]
[425083168,1781473839000,-500.0,0.00014847,2]
[425083146,1781473839000,-15831.1593,0.00014732,2]
[425083149,1781473839000,-382.63747358,0.00014837,2]
[425083150,1781473839000,-1948.32316134,0.00014847,2]
[425083153,1781473839000,-500.0,0.00014847,2]
[425083152,1781473839000,-615.34468037,0.00014847,2]
[425083155,1781473839000,-500.0,0.00014847,2]
[425083151,1781473839000,-500.0,0.00014847,2]
[425083154,1781473839000,-500.0,0.00014847,2]
[425083156,1781473839000,-500.0,0.00014847,2]
[425083158,1781473839000,-500.0,0.00014847,2]
[425083143,1781473839000,-2686.0,0.000147,2]
[425083147,1781473839000,-3943.19112755,0.00014736,2]
[425083134,1781473839000,-500.0,0.00014411,2]
[425083121,1781473839000,-503.57081224,0.00014298,2]
[425083133,1781473839000,-3943.19112755,0.00014408,2]
[425083159,1781473839000,-500.0,0.00014847,2]
[425083109,1781473839000,-207.42342357,0.00014162,2]
[425083119,1781473839000,-500.0,0.00014298,2]
[425083110,1781473839000,-150.96379356,0.00014162,2]
[425083111,1781473839000,-1680.03980667,0.00014232,2]
[425083112,1781473839000,-4433.65163063,0.00014232,2]
[425083113,1781473839000,-151.0,0.00014233,2]
[425083114,1781473839000,-156.587,0.00014233,2]
[425083117,1781473839000,-802.25695763,0.00014267,2]
[425083115,1781473839000,-200.63335723,0.00014233,2]
[425083118,1781473839000,-500.0,0.00014298,2]
[425083116,1781473839000,-3943.19112755,0.00014244,2]
[425083120,1781473839000,-500.0,0.00014298,2]
[425083122,1781473839000,-500.0,0.00014298,2]
[425083123,1781473839000,-500.0,0.00014298,2]
[425083124,1781473839000,-500.0,0.00014298,2]
[425083130,1781473839000,-161.12489956,0.00014299,2]
[425083128,1781473839000,-500.0,0.00014298,2]
[425083125,1781473839000,-500.0,0.00014298,2]
[425083131,1781473839000,-1000.0,0.00014355,2]
[425083127,1781473839000,-500.0,0.00014298,2]
[425083126,1781473839000,-500.0,0.00014298,2]
[425083129,1781473839000,-502.35889749,0.00014299,2]
[425083144,1781473839000,-7821.48701395,0.00014732,2]
[425083160,1781473839000,-500.0,0.00014847,2]
[425083157,1781473839000,-500.0,0.00014847,2]
[425083166,1781473839000,-500.0,0.00014847,2]
[425083203,1781473839000,-200.0,0.0001488,2]
[425083192,1781473839000,-616.84,0.00014847,2]
[425083200,1781473839000,-10000.0,0.00014848,2]
[425083201,1781473839000,-44799.33023697,0.0001485,2]
[425083202,1781473839000,-200.0,0.00014879,2]
[425083198,1781473839000,-500.0,0.00014847,2]
[425083194,1781473839000,-500.0,0.00014847,2]
[425083197,1781473839000,-500.0,0.00014847,2]
[425083196,1781473839000,-500.0,0.00014847,2]
[425083199,1781473839000,-500.0,0.00014847,2]
[425083195,1781473839000,-500.0,0.00014847,2]
[425083193,1781473839000,-500.0,0.00014847,2]
[425083205,1781473839000,-377.0,0.00014883,5]
[425083214,1781473839000,-500.0,0.00014899,2]
[425083206,1781473839000,-700.0,0.00014884,3]
[425083215,1781473839000,-4951.924,0.000149,2]
[425083209,1781473839000,-500.0,0.0001489,2]
[425083213,1781473839000,-500.0,0.00014899,2]
[425083208,1781473839000,-500.0,0.0001489,2]
[425083210,1781473839000,-2750.969,0.00014894,2]
[425083211,1781473839000,-176.48,0.00014894,2]
[425083212,1781473839000,-581.8,0.00014899,2]
[425083161,1781473839000,-500.0,0.00014847,2]
[425083216,1781473839000,-207.42342357,0.000149,2]
[425083207,1781473839000,-500.0,0.0001489,2]
[425083186,1781473839000,-504.0687638,0.00014847,2]
[425083204,1781473839000,-981.0,0.00014883,5]
[425083188,1781473839000,-500.0,0.00014847,2]
[425083165,1781473839000,-500.0,0.00014847,2]
[425083167,1781473839000,-512.28714422,0.00014847,2]
[425083181,1781473839000,-500.0,0.00014847,2]
[425083162,1781473839000,-500.0,0.00014847,2]
[425083164,1781473839000,-500.0,0.00014847,2]
[425083163,1781473839000,-215.22129672,0.00014847,2]
[425083170,1781473839000,-500.0,0.00014847,2]
[425083172,1781473839000,-500.0,0.00014847,2]
[425083169,1781473839000,-500.0,0.00014847,2]
[425083175,1781473839000,-500.0,0.00014847,2]
[425083173,1781473839000,-500.0,0.00014847,2]
[425083176,1781473839000,-500.0,0.00014847,2]
[425083171,1781473839000,-500.0,0.00014847,2]
[425083177,1781473839000,-226.33260723,0.00014847,2]
[425083182,1781473839000,-500.0,0.00014847,2]
[425083184,1781473839000,-500.0,0.00014847,2]
[425083191,1781473839000,-500.0,0.00014847,2]
[425083185,1781473839000,-500.0,0.00014847,2]
[425083180,1781473839000,-500.0,0.00014847,2]
[425083183,1781473839000,-614.4232435,0.00014847,2]
[425083189,1781473839000,-500.0,0.00014847,2]
[425083179,1781473839000,-500.0,0.00014847,2]
[425083178,1781473839000,-500.0,0.00014847,2]
[425083174,1781473839000,-500.0,0.00014847,2]
[425083187,1781473839000,-500.0,0.00014847,2]
[425083263,1781473840000,-500.0,0.00014998,2]
[425083264,1781473840000,-500.0,0.00014998,2]
[425083261,1781473840000,-500.0,0.00014998,2]
[425083259,1781473840000,-500.0,0.00014998,2]
[425083255,1781473840000,-500.0,0.00014998,2]
[425083250,1781473840000,-500.0,0.00014998,2]
[425083254,1781473840000,-500.0,0.00014998,2]
[425083248,1781473840000,-500.0,0.00014998,2]
[425083247,1781473840000,-500.0,0.00014998,2]
[425083243,1781473840000,-111452.0497807,0.00014998,2]
[425083253,1781473840000,-500.0,0.00014998,2]
[425083256,1781473840000,-500.0,0.00014998,2]
[425083262,1781473840000,-500.0,0.00014998,2]
[425083268,1781473840000,-500.0,0.00014998,2]
[425083260,1781473840000,-500.0,0.00014998,2]
[425083257,1781473840000,-500.0,0.00014998,2]
[425083265,1781473840000,-500.0,0.00014998,2]
[425083267,1781473840000,-500.0,0.00014998,2]
[425083273,1781473840000,-500.0,0.00014998,2]
[425083276,1781473840000,-500.0,0.00014998,2]
[425083274,1781473840000,-500.0,0.00014998,2]
[425083277,1781473840000,-500.0,0.00014998,2]
[425083275,1781473840000,-500.0,0.00014998,2]
[425083266,1781473840000,-500.0,0.00014998,2]
[425083269,1781473840000,-500.0,0.00014998,2]
[425083272,1781473840000,-500.0,0.00014998,2]
[425083245,1781473840000,-151.0,0.00014998,2]
[425083258,1781473840000,-500.0,0.00014998,2]
[425083244,1781473840000,-13749.8506213,0.00014998,2]
[425083219,1781473840000,-802.25695763,0.000149,2]
[425083249,1781473840000,-500.0,0.00014998,2]
[425083271,1781473840000,-500.0,0.00014998,2]
[425083217,1781473840000,-2991.57404873,0.000149,2]
[425083218,1781473840000,-150.96379356,0.000149,2]
[425083227,1781473840000,-500.0,0.00014987,2]
[425083220,1781473840000,-3943.19112755,0.000149,2]
[425083224,1781473840000,-500.0,0.00014935,2]
[425083222,1781473840000,-500.0,0.00014935,2]
[425083221,1781473840000,-350.0,0.00014903,2]
[425083223,1781473840000,-500.0,0.00014935,2]
[425083226,1781473840000,-150.0,0.00014986,2]
[425083225,1781473840000,-500.0,0.00014935,2]
[425083228,1781473840000,-500.0,0.00014987,2]
[425083230,1781473840000,-500.0,0.00014988,2]
[425083232,1781473840000,-382.63747358,0.0001499,2]
[425083231,1781473840000,-382.63747358,0.0001499,2]
[425083233,1781473840000,-366149.5742509,0.00014993,2]
[425083237,1781473840000,-610.18,0.00014997,2]
[425083236,1781473840000,-570.32,0.00014997,2]
[425083235,1781473840000,-151.0,0.00014997,2]
[425083239,1781473840000,-500.0,0.00014997,2]
[425083229,1781473840000,-500.0,0.00014987,2]
[425083238,1781473840000,-610.18,0.00014997,2]
[425083240,1781473840000,-500.0,0.00014997,2]
[425083242,1781473840000,-2269.8253156,0.00014998,2]
[425083252,1781473840000,-500.0,0.00014998,2]
[425083241,1781473840000,-500.0,0.00014997,2]
[425083246,1781473840000,-306.8582811,0.00014998,2]
[425083251,1781473840000,-500.0,0.00014998,2]
[425083270,1781473840000,-500.0,0.00014998,2]
[425083328,1781473840000,-951.85651,0.00014998,2]
[425083282,1781473840000,-500.0,0.00014998,2]
[425083313,1781473840000,-151.0,0.00014998,2]
[425083311,1781473840000,-132512.7548361,0.00014998,2]
[425083309,1781473840000,-221.88136,0.00014998,2]
[425083312,1781473840000,-151.0,0.00014998,2]
[425083315,1781473840000,-151.0,0.00014998,2]
[425083317,1781473840000,-151.0,0.00014998,2]
[425083325,1781473840000,-151.0,0.00014998,2]
[425083319,1781473840000,-151.0,0.00014998,2]
[425083316,1781473840000,-151.0,0.00014998,2]
[425083326,1781473840000,-951.85651,0.00014998,2]
[425083320,1781473840000,-151.0,0.00014998,2]
[425083318,1781473840000,-151.0,0.00014998,2]
[425083322,1781473840000,-151.0,0.00014998,2]
[425083321,1781473840000,-151.0,0.00014998,2]
[425083323,1781473840000,-158.61093,0.00014998,2]
[425083324,1781473840000,-151.0,0.00014998,2]
[425083327,1781473840000,-951.85651,0.00014998,2]
[425083333,1781473840000,-151.0,0.00014999,2]
[425083332,1781473840000,-1050.60422366,0.00014999,5]
[425083330,1781473840000,-1050.60422367,0.00014999,5]
[425083338,1781473840000,-570.32,0.00014999,2]
[425083278,1781473840000,-500.0,0.00014998,2]
[425083334,1781473840000,-570.32,0.00014999,2]
[425083329,1781473840000,-951.85651,0.00014998,2]
[425083335,1781473840000,-570.32,0.00014999,2]
[425083337,1781473840000,-570.32,0.00014999,2]
[425083336,1781473840000,-570.32,0.00014999,2]
[425083310,1781473840000,-221.88136,0.00014998,2]
[425083304,1781473840000,-500.0,0.00014998,2]
[425083331,1781473840000,-1050.60422367,0.00014999,5]
[425083314,1781473840000,-151.0,0.00014998,2]
[425083307,1781473840000,-221.88136,0.00014998,2]
[425083287,1781473840000,-500.0,0.00014998,2]
[425083288,1781473840000,-500.0,0.00014998,2]
[425083289,1781473840000,-500.0,0.00014998,2]
[425083280,1781473840000,-500.0,0.00014998,2]
[425083279,1781473840000,-500.0,0.00014998,2]
[425083284,1781473840000,-500.0,0.00014998,2]
[425083286,1781473840000,-500.0,0.00014998,2]
[425083283,1781473840000,-500.0,0.00014998,2]
[425083285,1781473840000,-500.0,0.00014998,2]
[425083291,1781473840000,-500.0,0.00014998,2]
[425083301,1781473840000,-500.0,0.00014998,2]
[425083302,1781473840000,-500.0,0.00014998,2]
[425083281,1781473840000,-500.0,0.00014998,2]
[425083293,1781473840000,-500.0,0.00014998,2]
[425083290,1781473840000,-500.0,0.00014998,2]
[425083305,1781473840000,-500.0,0.00014998,2]
[425083303,1781473840000,-500.0,0.00014998,2]
[425083297,1781473840000,-500.0,0.00014998,2]
[425083298,1781473840000,-500.0,0.00014998,2]
[425083306,1781473840000,-18283.6652053,0.00014998,2]
[425083294,1781473840000,-500.0,0.00014998,2]
[425083292,1781473840000,-500.0,0.00014998,2]
[425083300,1781473840000,-500.0,0.00014998,2]
[425083296,1781473840000,-500.0,0.00014998,2]
[425083308,1781473840000,-221.88136,0.00014998,2]
[425083295,1781473840000,-500.0,0.00014998,2]
[425083299,1781473840000,-500.0,0.00014998,2]
[425083370,1781473841000,-500.0,0.00014999,2]
[425083372,1781473841000,-500.0,0.00014999,2]
[425083367,1781473841000,-500.0,0.00014999,2]
[425083369,1781473841000,-500.0,0.00014999,2]
[425083373,1781473841000,-500.0,0.00014999,2]
[425083375,1781473841000,-250.0,0.00014999,2]
[425083366,1781473841000,-500.0,0.00014999,2]
[425083365,1781473841000,-500.0,0.00014999,2]
[425083376,1781473841000,-3000.0,0.00014999,2]
[425083374,1781473841000,-174.7138769,0.00014999,2]
[425083383,1781473841000,-500.0,0.00014999,2]
[425083385,1781473841000,-500.0,0.00014999,2]
[425083382,1781473841000,-500.0,0.00014999,2]
[425083384,1781473841000,-500.0,0.00014999,2]
[425083379,1781473841000,-500.0,0.00014999,2]
[425083387,1781473841000,-500.0,0.00014999,2]
[425083381,1781473841000,-500.0,0.00014999,2]
[425083378,1781473841000,-376.62,0.00014999,2]
[425083377,1781473841000,-1047.97376742,0.00014999,5]
[425083386,1781473841000,-500.0,0.00014999,2]
[425083371,1781473841000,-500.0,0.00014999,2]
[425083380,1781473841000,-500.0,0.00014999,2]
[425083368,1781473841000,-500.0,0.00014999,2]
[425083349,1781473841000,-610.18,0.00014999,2]
[425083363,1781473841000,-500.0,0.00014999,2]
[425083339,1781473841000,-570.32,0.00014999,2]
[425083341,1781473841000,-570.32,0.00014999,2]
[425083343,1781473841000,-570.32,0.00014999,2]
[425083344,1781473841000,-570.36,0.00014999,2]
[425083340,1781473841000,-570.32,0.00014999,2]
[425083345,1781473841000,-610.18,0.00014999,2]
[425083342,1781473841000,-570.32,0.00014999,2]
[425083346,1781473841000,-610.18,0.00014999,2]
[425083347,1781473841000,-610.18,0.00014999,2]
[425083399,1781473841000,-500.0,0.00014999,2]
[425083348,1781473841000,-610.18,0.00014999,2]
[425083351,1781473841000,-610.18,0.00014999,2]
[425083353,1781473841000,-610.18,0.00014999,2]
[425083352,1781473841000,-610.18,0.00014999,2]
[425083359,1781473841000,-500.0,0.00014999,2]
[425083357,1781473841000,-500.0,0.00014999,2]
[425083358,1781473841000,-500.0,0.00014999,2]
[425083356,1781473841000,-500.0,0.00014999,2]
[425083354,1781473841000,-610.18,0.00014999,2]
[425083360,1781473841000,-500.0,0.00014999,2]
[425083362,1781473841000,-500.0,0.00014999,2]
[425083364,1781473841000,-500.0,0.00014999,2]
[425083389,1781473841000,-500.0,0.00014999,2]
[425083350,1781473841000,-610.18,0.00014999,2]
[425083391,1781473841000,-500.0,0.00014999,2]
[425083422,1781473841000,-500.0,0.00014999,2]
[425083420,1781473841000,-500.0,0.00014999,2]
[425083416,1781473841000,-500.0,0.00014999,2]
[425083418,1781473841000,-500.0,0.00014999,2]
[425083421,1781473841000,-500.0,0.00014999,2]
[425083417,1781473841000,-500.0,0.00014999,2]
[425083423,1781473841000,-500.0,0.00014999,2]
[425083419,1781473841000,-500.0,0.00014999,2]
[425083429,1781473841000,-500.0,0.00014999,2]
[425083428,1781473841000,-500.0,0.00014999,2]
[425083415,1781473841000,-500.0,0.00014999,2]
[425083426,1781473841000,-500.0,0.00014999,2]
[425083431,1781473841000,-500.0,0.00014999,2]
[425083432,1781473841000,-300.0,0.00014999,2]
[425083433,1781473841000,-2591146.85022262,0.00015,2]
[425083430,1781473841000,-500.0,0.00014999,2]
[425083434,1781473841000,-457.34,0.00014999,2]
[425083437,1781473841000,-523.8450055,0.00015,2]
[425083435,1781473841000,-75108.59541556,0.00015,2]
[425083436,1781473841000,-1062.67709318,0.00015,2]
[425083438,1781473841000,-4493.52828023,0.00015,2]
[425083388,1781473841000,-500.0,0.00014999,2]
[425083427,1781473841000,-187.87139578,0.00014999,2]
[425083413,1781473841000,-500.0,0.00014999,2]
[425083355,1781473841000,-500.0,0.00014999,2]
[425083424,1781473841000,-500.0,0.00014999,2]
[425083392,1781473841000,-500.0,0.00014999,2]
[425083395,1781473841000,-500.0,0.00014999,2]
[425083393,1781473841000,-500.0,0.00014999,2]
[425083397,1781473841000,-500.0,0.00014999,2]
[425083396,1781473841000,-500.0,0.00014999,2]
[425083394,1781473841000,-500.0,0.00014999,2]
[425083398,1781473841000,-500.0,0.00014999,2]
[425083400,1781473841000,-500.0,0.00014999,2]
[425083404,1781473841000,-500.0,0.00014999,2]
[425083402,1781473841000,-500.0,0.00014999,2]
[425083405,1781473841000,-500.0,0.00014999,2]
[425083390,1781473841000,-500.0,0.00014999,2]
[425083409,1781473841000,-500.0,0.00014999,2]
[425083425,1781473841000,-500.0,0.00014999,2]
[425083410,1781473841000,-500.0,0.00014999,2]
[425083408,1781473841000,-500.0,0.00014999,2]
[425083401,1781473841000,-500.0,0.00014999,2]
[425083411,1781473841000,-500.0,0.00014999,2]
[425083403,1781473841000,-500.0,0.00014999,2]
[425083407,1781473841000,-500.0,0.00014999,2]
[425083412,1781473841000,-500.0,0.00014999,2]
[425083414,1781473841000,-500.0,0.00014999,2]
[425083406,1781473841000,-500.0,0.00014999,2]
[425083440,1781473842000,-1525.6419999,0.00015,2]
[425083439,1781473842000,-500.0,0.00013698,2]
[425083441,1781473842000,-9388.41262401,0.00015,2]
[425083445,1781473842000,-47638.26990554,0.00015,2]
[425083442,1781473842000,-1500.0,0.00015,2]
[425083444,1781473842000,-5824.85137875,0.00015,2]
[425083446,1781473842000,-17614.77185017,0.00015,2]
[425083443,1781473842000,-662.34366678,0.00015,2]
[425083455,1781473843000,-757.17165468,0.00015,2]
[425083453,1781473843000,-1427.50508041,0.00015,2]
[425083456,1781473843000,-3408.0,0.00015,2]
[425083457,1781473843000,-316.4671945,0.00015,2]
[425083454,1781473843000,-1298.72636785,0.00015,2]
[425083460,1781473843000,-429.14626529,0.00015,2]
[425083458,1781473843000,-669.35232545,0.00015,2]
[425083466,1781473843000,-804.8152909,0.00015,2]
[425083464,1781473843000,-452663.43967396,0.00015,2]
[425083462,1781473843000,-1147.66,0.00015,2]
[425083459,1781473843000,-129607.75406025,0.00015,2]
[425083469,1781473844000,-9743.29826841,0.00015,2]
[425083489,1781473846000,-325999.99999999,0.00015,2]
[425083488,1781473846000,-16869.13636287,0.00015,2]
[425083486,1781473846000,-1634.79999985,0.00015,2]
[425083487,1781473846000,-35475.25222215,0.00015,2]
[425083485,1781473846000,-1345.54048416,0.00015,2]
[425083484,1781473846000,-115922.95331165,0.00015,2]
[425083483,1781473846000,-13038.98681905,0.00015,2]
[425083492,1781473939000,-244.96764685,0.0001178,2]
[425083494,1781474071000,405.01008064,0.000103,2]
[425083493,1781474071000,157.47,0.000103,2]
[425083495,1781474148000,-150.0,0.00011823,2]
[425083496,1781474150000,500.0,0.00027397,120]
[425083497,1781474151000,94.98991936,0.00010473,2]
[425083501,1781474358000,-148.19008064,0.00010473,2]
[425083502,1781474411000,-300.0,0.00011169,2]
[425083503,1781474464000,-388.99345636,0.00011169,2]
[425083504,1781474517000,-150.0,0.00011263,2]
[425083505,1781474572000,-166.66,0.00011357,2]
[425083509,1781474625000,-175.51,0.00011366,2]
[425083512,1781474678000,-1062.67709318,0.00011358,2]
[425083513,1781474696000,-1062.67709318,0.00011358,2]
[425083514,1781474712000,-500.0,0.00011357,2]
[425083515,1781474764000,-458.6304,0.00011069,2]
[425083518,1781474833000,-302.80224166,0.00011358,2]
[425083517,1781474833000,-218.0,0.00011356,2]
[425083516,1781474833000,-256.67166806,0.0001,2]
[425083519,1781474974000,-161.91357198,0.00011358,2]
[425083521,1781475027000,-500.0,0.00011422,2]
[425083530,1781475032000,-164.98556554,0.00011422,2]
[425083529,1781475032000,-174.72279326,0.00011322,2]
[425083532,1781475032000,-500.0,0.00011422,2]
[425083531,1781475032000,-335.01443446,0.00011422,2]
[425083534,1781475032000,-282.84502232,0.00011422,2]
[425083533,1781475032000,-500.0,0.00011422,2]
[425083536,1781475032000,-28.05907105,0.00011422,2]
[425083538,1781475032000,-160.0,0.00011438,2]
[425083535,1781475032000,-232.06196016,0.00011422,2]
[425083539,1781475032000,-821.94,0.0001147,2]
[425083540,1781475032000,-1000.0,0.00011562,2]
[425083541,1781475032000,-166.66,0.00011596,2]
[425083549,1781475032000,-312.97209353,0.00011966,2]
[425083544,1781475032000,-174.72279326,0.00011908,2]
[425083542,1781475032000,-166.83,0.0001162,2]
[425083543,1781475032000,-166.66,0.00011835,2]
[425083545,1781475032000,-766.00551264,0.00011908,2]
[425083546,1781475032000,-4830.14643555,0.00011908,2]
[425083537,1781475032000,-1890.87,0.00011423,2]
[425083551,1781475033000,-150.0,0.00011994,2]
[425083553,1781475033000,-500.0,0.00011994,2]
[425083552,1781475033000,-500.0,0.00011994,2]
[425083554,1781475033000,-407.02578461,0.00011994,2]
[425083566,1781475033000,-634.82546688,0.00011995,2]
[425083568,1781475033000,-1641.42458806,0.00011995,2]
[425083558,1781475033000,-500.0,0.00011994,2]
[425083560,1781475033000,-493.63130845,0.00011994,2]
[425083556,1781475033000,-200.48476203,0.00011994,2]
[425083562,1781475033000,-234.64884009,0.00011994,2]
[425083571,1781475033000,-1517.71202127,0.00011995,2]
[425083564,1781475033000,-40727.82867226,0.00011995,2]
[425083642,1781475038000,-151.0,0.00012106,2]
[425083651,1781475038000,-169.0,0.00012106,2]
[425083640,1781475038000,-166.66,0.00012074,2]
[425083643,1781475038000,-169.0,0.00012106,2]
[425083650,1781475038000,-169.0,0.00012106,2]
[425083645,1781475038000,-169.0,0.00012106,2]
[425083641,1781475038000,-1065.73,0.00012095,2]
[425083649,1781475038000,-169.0,0.00012106,2]
[425083647,1781475038000,-169.0,0.00012106,2]
[425083648,1781475038000,-169.0,0.00012106,2]
[425083644,1781475038000,-169.0,0.00012106,2]
[425083636,1781475038000,-1047.97376743,0.00012008,3]
[425083638,1781475038000,-16704.8877,0.00012009,2]
[425083639,1781475038000,-912709.3217,0.00012009,2]
[425083637,1781475038000,-2500.0,0.00012009,2]
[425083634,1781475038000,-404222.55634898,0.00011995,2]
[425083633,1781475038000,-13420.55735587,0.00011995,2]
[425083632,1781475038000,-6409.45678226,0.00011995,2]
[425083631,1781475038000,-948.89821074,0.00011995,2]
[425083630,1781475038000,-65018.00000001,0.00011995,2]
[425083629,1781475038000,-737.89697117,0.00011995,2]
[425083627,1781475038000,-290.7749825,0.00011995,2]
[425083628,1781475038000,-3346.19,0.00011995,2]
[425083654,1781475038000,-1301.85573133,0.00012108,2]
[425083635,1781475038000,-382.63747358,0.00011999,2]
[425083652,1781475038000,-1049.94660961,0.00012108,3]
[425083691,1781475038000,-500.0,0.00013096,2]
[425083653,1781475038000,-1050.60422367,0.00012108,3]
[425083655,1781475038000,-1000.0,0.00012108,2]
[425083696,1781475038000,-9808.95666259,0.00013352,2]
[425083698,1781475038000,-500.0,0.00013425,2]
[425083693,1781475038000,-242.08073426,0.00013109,2]
[425083685,1781475038000,-255.0,0.00013074,2]
[425083688,1781475038000,-961.87,0.00013095,2]
[425083670,1781475038000,-242.08073426,0.00012661,2]
[425083667,1781475038000,-166.66,0.00012552,2]
[425083672,1781475038000,-9808.95666259,0.00012732,2]
[425083683,1781475038000,-9808.95666259,0.00013042,2]
[425083665,1781475038000,-250.0,0.00012492,2]
[425083681,1781475038000,-465.71051319,0.00013042,2]
[425083700,1781475038000,-500.0,0.00013425,2]
[425083678,1781475038000,-200.0,0.00013036,2]
[425083676,1781475038000,-318.19055701,0.00013,2]
[425083674,1781475038000,-5762.64594108,0.00012819,2]
[425083664,1781475038000,-300.0,0.00012492,2]
[425083662,1781475038000,-166.66,0.00012313,2]
[425083659,1781475038000,-249.13739348,0.00012113,2]
[425083661,1781475038000,-5596.15194812,0.0001224,2]
[425083660,1781475038000,-242.0807343,0.00012213,2]
[425083657,1781475038000,-176.48,0.00012109,2]
[425083658,1781475038000,-9808.95666267,0.00012113,2]
[425083656,1781475038000,-2750.969,0.00012109,2]
[425083663,1781475038000,-9808.95666259,0.00012423,2]
[425083774,1781475039000,-151.42762908,0.00013598,2]
[425083776,1781475039000,-161.12489957,0.00013598,2]
[425083778,1781475039000,-9808.95666259,0.00013661,2]
[425083767,1781475039000,-152.0,0.0001359,2]
[425083771,1781475039000,-286.43594487,0.00013598,2]
[425083769,1781475039000,-500.0,0.00013594,2]
[425083763,1781475039000,-2000.0,0.00013575,2]
[425083786,1781475039000,-500.0,0.00013698,2]
[425083765,1781475039000,-2000.0,0.00013575,2]
[425083780,1781475039000,-497.0,0.00013668,5]
[425083791,1781475039000,-500.0,0.00013698,2]
[425083805,1781475039000,-500.0,0.00013698,2]
[425083798,1781475039000,-500.0,0.00013698,2]
[425083794,1781475039000,-500.0,0.00013698,2]
[425083803,1781475039000,-500.0,0.00013698,2]
[425083800,1781475039000,-500.0,0.00013698,2]
[425083807,1781475039000,-500.0,0.00013698,2]